fUST/lending_fUST_20250924
["ID","MTS","AMOUNT","RATE_DAILY","PERIOD"]
[387412921,1758719466973,-480.0,0.00022739,2]
[387412922,1758719466983,-566.93880249,0.00022739,2]
[387412923,1758719466992,-711.85,0.00022739,2]
[387412924,1758719467002,-1326.7,0.00022739,2]
[387412925,1758719467012,-897.86,0.00022739,2]
[387412926,1758719467021,-605.0,0.0002274,2]
[387412927,1758719467030,-500.0,0.00022766,2]
[387412928,1758719467040,-1500.0,0.00022831,2]
[387412929,1758719467049,-7070.42577877,0.00022913,2]
[387412930,1758719467059,-265.0,0.00022938,2]
[387412931,1758719467068,-500.0,0.0002297,2]
[387412932,1758719467077,-600.0,0.00022971,2]
[387412933,1758719467087,-265.0,0.0002298,2]
[387412934,1758719467096,-160.0,0.00023,2]
[387412935,1758719467106,-480.0,0.00023013,2]
[387412936,1758719467116,-509.31,0.00023013,2]
[387412937,1758719467125,-173.8154021,0.00023013,2]
[387412938,1758719467135,-480.0,0.00023013,2]
[387412939,1758719467145,-480.0,0.00023013,2]
[387412940,1758719467155,-480.0,0.00023013,2]
[387412941,1758719467164,-899.66,0.00023013,2]
[387412942,1758719467174,-480.0,0.00023013,2]
[387412943,1758719467183,-480.13,0.00023013,2]
[387412944,1758719467193,-519.16,0.00023013,2]
[387412945,1758719467203,-480.0,0.00023013,2]
[387412946,1758719467212,-854.65,0.00023013,2]
[387412947,1758719467222,-1587.51,0.00023013,2]
[387412948,1758719467231,-1160.7,0.00023013,2]
[387412949,1758719467240,-4044.07,0.00023013,2]
[387412950,1758719467249,-480.0,0.00023013,2]
[387412951,1758719467258,-611.17,0.00023013,2]
[387412952,1758719467268,-638.46,0.00023013,2]
[387412953,1758719467277,-2214.51,0.00023013,2]
[387412954,1758719467287,-872.86,0.00023013,2]
[387412955,1758719467298,-1230.73,0.00023013,2]
[387412956,1758719467307,-1779.43,0.00023013,2]
[387412957,1758719467317,-480.0,0.00023013,2]
[387412958,1758719467327,-558.58,0.00023013,2]
[387412959,1758719467336,-826.49,0.00023013,2]
[387412960,1758719467346,-936.44,0.00023013,2]
[387412961,1758719467355,-1066.15,0.00023013,2]
[387412962,1758719467365,-669.52,0.00023013,2]
[387412963,1758719467375,-480.0,0.00023013,2]
[387412964,1758719467385,-731.84,0.00023013,2]
[387412965,1758719467395,-480.0,0.00023013,2]
[387412966,1758719467405,-631.9,0.00023013,2]
[387412967,1758719467415,-480.0,0.00023013,2]
[387412968,1758719467424,-480.0,0.00023013,2]
[387412969,1758719467433,-480.0,0.00023013,2]
[387412970,1758719467443,-2335.85,0.00023013,2]
[387412971,1758719467453,-1222.83,0.00023013,2]
[387412972,1758719467462,-480.0,0.00023013,2]
[387412973,1758719467472,-1549.36,0.00023013,2]
[387412974,1758719467484,-652.74,0.00023013,2]
[387412975,1758719467495,-480.0,0.00023013,2]
[387412976,1758719467505,-746.35,0.00023013,2]
[387412977,1758719467515,-500.87,0.00023013,2]
[387412978,1758719467524,-1113.86,0.00023013,2]
[387412979,1758719467534,-480.0,0.00023013,2]
[387412980,1758719467544,-711.85,0.00023013,2]
[387412981,1758719467555,-1326.7,0.00023013,2]
[387412982,1758719467564,-897.86,0.00023013,2]
[387412983,1758719467574,-605.0,0.00023014,2]
[387412984,1758719467584,-660.0,0.00023015,2]
[387412985,1758719467594,-500.0,0.00023018,2]
[387412986,1758719467603,-500.0,0.00023033,2]
[387412987,1758719467613,-500.0,0.00023058,2]
[387412988,1758719467623,-500.0,0.00023096,2]
[387412989,1758719467633,-3395.40197437,0.00023116,2]
[387412990,1758719467645,-500.0,0.00023117,2]
[387412991,1758719467655,-500.0,0.00023134,2]
[387412992,1758719467665,-910.85250859,0.00023206,2]
[387412993,1758719467675,-500.0,0.00023206,2]
[387412994,1758719467685,-265.0,0.00023223,2]
[387412995,1758719467695,-500.0,0.00023239,2]
[387412996,1758719467705,-265.0,0.00023257,2]
[387412997,1758719467715,-196.42,0.00023265,2]
[387412998,1758719467724,-265.0,0.00023266,2]
[387412999,1758719467734,-500.0,0.00023266,2]
[387413000,1758719467744,-480.0,0.00023287,2]
[387413001,1758719467753,-509.31,0.00023287,2]
[387413002,1758719467763,-480.0,0.00023287,2]
[387413003,1758719467772,-480.0,0.00023287,2]
[387413004,1758719467782,-363.85,0.00023287,2]
[387413005,1758719467792,-899.66,0.00023287,2]
[387413006,1758719467802,-480.0,0.00023287,2]
[387413007,1758719467811,-480.13,0.00023287,2]
[387413008,1758719467821,-519.16,0.00023287,2]
[387413009,1758719467831,-480.0,0.00023287,2]
[387413010,1758719467840,-480.0,0.00023287,2]
[387413011,1758719467850,-854.65,0.00023287,2]
[387413012,1758719467859,-1587.51,0.00023287,2]
[387413013,1758719467869,-1160.7,0.00023287,2]
[387413014,1758719467878,-4044.07,0.00023287,2]
[387413015,1758719467887,-876.13,0.00023287,2]
[387413016,1758719467897,-480.0,0.00023287,2]
[387413017,1758719467907,-611.17,0.00023287,2]
[387413018,1758719467916,-638.46,0.00023287,2]
[387413019,1758719467929,-2214.51,0.00023287,2]
[387413020,1758719467944,-872.86,0.00023287,2]
[387413021,1758719467958,-1230.73,0.00023287,2]
[387413022,1758719467970,-1779.43,0.00023287,2]
[387413023,1758719467985,-480.0,0.00023287,2]
[387413024,1758719467999,-558.58,0.00023287,2]
[387413025,1758719468014,-826.49,0.00023287,2]
[387413026,1758719468027,-936.44,0.00023287,2]
[387413027,1758719468042,-1066.15,0.00023287,2]
[387413028,1758719468056,-669.52,0.00023287,2]
[387413029,1758719468070,-480.0,0.00023287,2]
[387413030,1758719468083,-731.84,0.00023287,2]
[387413031,1758719468096,-480.0,0.00023287,2]
[387413032,1758719468111,-631.9,0.00023287,2]
[387413033,1758719468123,-480.0,0.00023287,2]
[387413034,1758719468134,-480.0,0.00023287,2]
[387413035,1758719468147,-528.79157767,0.00023287,2]
[387413036,1758719468160,-2335.85,0.00023287,2]
[387413037,1758719468174,-1222.83,0.00023287,2]
[387413038,1758719468188,-480.0,0.00023287,2]
[387413039,1758719468203,-1549.36,0.00023287,2]
[387413040,1758719468218,-652.74,0.00023287,2]
[387413041,1758719468232,-480.0,0.00023287,2]
[387413042,1758719468243,-746.35,0.00023287,2]
[387413043,1758719468254,-500.87,0.00023287,2]
[387413044,1758719468268,-1113.86,0.00023287,2]
[387413045,1758719468283,-480.0,0.00023287,2]
[387413046,1758719468295,-711.85,0.00023287,2]
[387413047,1758719468307,-1326.7,0.00023287,2]
[387413048,1758719468321,-897.86,0.00023287,2]
[387413049,1758719468333,-605.0,0.00023288,2]
[387413050,1758719468345,-265.0,0.00023292,2]
[387413051,1758719468357,-2454.07,0.00023304,2]
[387413052,1758719468370,-265.0,0.00023432,2]
[387413053,1758719468381,-500.0,0.00023436,2]
[387413054,1758719468393,-44072.94905382,0.0002344,2]
[387413055,1758719468409,-14954.10643436,0.0002344,2]
[387413056,1758719468443,210.35,0.00021376,30]
[387413057,1758719468459,-1316.89762068,0.0002344,2]
[387413058,1758719468472,-1629.38357076,0.0002344,2]
[387413059,1758719468505,420.7,0.00022394,30]
[387413060,1758719468539,631.05,0.00023412,30]
[387413083,1758719834870,750.0,0.00027,120]
[387413084,1758719923792,163.31,0.00023123,30]
[387413086,1758720009432,162.42,0.00022975,30]
[387413089,1758720171255,161.53,0.00023301,30]
[387413226,1758720402101,-237.82599398,0.00019066,2]
[387413304,1758720631852,-2205.58573842,0.00019078,2]
[387413306,1758720631864,-252.96699004,0.00019078,2]
[387413490,1758720637928,-856.16851399,0.00019078,2]
[387413491,1758720637938,-392.96233068,0.00019078,2]
[387413492,1758720637948,-3310.00161913,0.00019078,2]
[387413493,1758720637957,-1200.0,0.00019146,2]
[387413494,1758720637967,-392.96233066,0.00019147,2]
[387413495,1758720637977,-300.0,0.00019166,2]
[387413496,1758720637987,-300.0,0.00019166,2]
[387413497,1758720637999,-405.93,0.00019168,3]
[387413498,1758720638009,-492.92,0.00019168,3]
[387413499,1758720638018,-164.3,0.00019168,3]
[387413500,1758720638028,-492.95,0.00019168,3]
[387413501,1758720638037,-500.0,0.00019173,2]
[387413502,1758720638047,-500.0,0.00019173,2]
[387413503,1758720638056,-500.0,0.00019173,2]
[387413504,1758720638066,-500.0,0.00019173,2]
[387413505,1758720638076,-503.79934811,0.00019173,2]
[387413506,1758720638086,-580.34035072,0.00019173,2]
[387413507,1758720638095,-1200.0,0.00019176,2]
[387413508,1758720638105,-500.0,0.00019177,2]
[387413509,1758720638114,-351.01471178,0.00019177,2]
[387413510,1758720638124,-500.0,0.00019177,2]
[387413511,1758720638134,-194.68611003,0.00019177,2]
[387413512,1758720638143,-500.0,0.00019177,2]
[387413513,1758720638153,-500.0,0.00019177,2]
[387413514,1758720638162,-500.0,0.00019177,2]
[387413515,1758720638174,-500.0,0.00019177,2]
[387413516,1758720638184,-500.0,0.00019177,2]
[387413517,1758720638193,-500.0,0.00019177,2]
[387413518,1758720638202,-500.0,0.00019177,2]
[387413519,1758720638211,-500.0,0.00019177,2]
[387413520,1758720638221,-206.55256738,0.00019177,2]
[387413521,1758720638230,-500.0,0.00019177,2]
[387413522,1758720638240,-437.02298843,0.00019177,2]
[387413523,1758720638251,-500.0,0.00019177,2]
[387413524,1758720638261,-500.0,0.00019177,2]
[387413525,1758720638277,-500.0,0.00019177,2]
[387413526,1758720638290,-500.0,0.00019177,2]
[387413527,1758720638300,-500.0,0.00019177,2]
[387413528,1758720638309,-500.0,0.00019177,2]
[387413529,1758720638319,-500.0,0.00019177,2]
[387413530,1758720638330,-500.0,0.00019177,2]
[387413531,1758720638340,-500.0,0.00019177,2]
[387413532,1758720638356,-500.0,0.00019177,2]
[387413533,1758720638367,-500.0,0.00019177,2]
[387413534,1758720638379,-480.59350214,0.00019178,2]
[387413535,1758720638388,-480.0,0.00019178,2]
[387413536,1758720638397,-516.49279421,0.00019178,2]
[387413537,1758720638407,-480.0,0.00019178,2]
[387413538,1758720638416,-480.0,0.00019178,2]
[387413539,1758720638425,-480.0,0.00019178,2]
[387413540,1758720638434,-480.0,0.00019178,2]
[387413541,1758720638444,-480.0,0.00019178,2]
[387413542,1758720638454,-480.0,0.00019178,2]
[387413543,1758720638464,-480.0,0.00019178,2]
[387413544,1758720638474,-480.0,0.00019178,2]
[387413545,1758720638484,-480.0,0.00019178,2]
[387413546,1758720638494,-480.0,0.00019178,2]
[387413547,1758720638503,-480.0,0.00019178,2]
[387413548,1758720638513,-480.0,0.00019178,2]
[387413549,1758720638522,-500.0,0.00019178,2]
[387413550,1758720638531,-480.0,0.00019178,2]
[387413551,1758720638541,-520.0,0.00019178,3]
[387413552,1758720638551,-480.0,0.00019178,2]
[387413553,1758720638560,-480.0,0.00019178,2]
[387413554,1758720638570,-480.0,0.00019178,2]
[387413555,1758720638579,-480.0,0.00019178,2]
[387413556,1758720638589,-480.0,0.00019178,2]
[387413557,1758720638599,-480.0,0.00019178,2]
[387413558,1758720638608,-480.0,0.00019178,2]
[387413566,1758720638755,-480.0,0.00019178,2]
[387413568,1758720638767,-625.4350227,0.00019178,2]
[387413570,1758720638778,-480.0,0.00019178,2]
[387413571,1758720638787,-480.0,0.00019178,2]
[387413572,1758720638797,-340.00303229,0.00019178,2]
[387413574,1758720638807,-481.39775507,0.00019178,2]
[387413576,1758720638816,-480.0,0.00019178,2]
[387413577,1758720638825,-500.55643327,0.00019178,2]
[387413578,1758720638835,-480.0,0.00019178,2]
[387413579,1758720638845,-480.0,0.00019178,2]
[387413580,1758720638854,-480.0,0.00019178,2]
[387413581,1758720638864,-480.0,0.00019178,2]
[387413582,1758720638874,-480.0,0.00019178,2]
[387413583,1758720638883,-480.0,0.00019178,2]
[387413584,1758720638893,-480.0,0.00019178,2]
[387413585,1758720638902,-480.0,0.00019178,2]
[387413586,1758720638912,-480.0,0.00019178,2]
[387413587,1758720638922,-480.0,0.00019178,2]
[387413588,1758720638933,-480.0,0.00019178,2]
[387413589,1758720638942,-453.06233828,0.00019178,2]
[387413590,1758720638952,-480.0,0.00019178,2]
[387413591,1758720638963,-480.0,0.00019178,2]
[387413592,1758720638972,-480.0,0.00019178,2]
[387413593,1758720638984,-480.0,0.00019178,2]
[387413594,1758720638993,-480.0,0.00019178,2]
[387413595,1758720639003,-491.01504011,0.00019178,2]
[387413596,1758720639012,-480.0,0.00019178,2]
[387413597,1758720639022,-481.08902511,0.00019178,2]
[387413598,1758720639031,-480.0,0.00019178,2]
[387413599,1758720639042,-480.0,0.00019178,2]
[387413600,1758720639051,-480.0,0.00019178,2]
[387413601,1758720639061,-480.0,0.00019178,2]
[387413602,1758720639070,-480.0,0.00019178,2]
[387413603,1758720639080,-480.0,0.00019178,2]
[387413604,1758720639090,-481.75946063,0.00019178,2]
[387413605,1758720639099,-480.0,0.00019178,2]
[387413606,1758720639109,-480.0,0.00019178,2]
[387413607,1758720639119,-480.0,0.00019178,2]
[387413608,1758720639128,-480.0,0.00019178,2]
[387413609,1758720639138,-481.86049687,0.00019178,2]
[387413610,1758720639148,-480.0,0.00019178,2]
[387413611,1758720639157,-480.0,0.00019178,2]
[387413612,1758720639167,-482.85451667,0.00019178,2]
[387413613,1758720639177,-480.0,0.00019178,2]
[387413614,1758720639187,-272.08111549,0.00019178,2]
[387413615,1758720639197,-480.0,0.00019178,2]
[387413616,1758720639207,-480.0,0.00019178,2]
[387413617,1758720639217,-480.0,0.00019178,2]
[387413618,1758720639227,-480.0,0.00019178,2]
[387413619,1758720639237,-481.92220485,0.00019178,2]
[387413620,1758720639247,-501.86224629,0.00019178,2]
[387413621,1758720639257,-480.0,0.00019178,2]
[387413622,1758720639266,-480.0,0.00019178,2]
[387413623,1758720639276,-480.0,0.00019178,2]
[387413624,1758720639289,-480.0,0.00019178,2]
[387413626,1758720639298,-480.0,0.00019178,2]
[387413627,1758720639308,-480.0,0.00019178,2]
[387413628,1758720639318,-480.0,0.00019178,2]
[387413631,1758720639327,-480.0,0.00019178,2]
[387413632,1758720639337,-480.0,0.00019178,2]
[387413633,1758720639346,-480.0,0.00019178,2]
[387413634,1758720639356,-480.0,0.00019178,2]
[387413636,1758720639366,-481.23771266,0.00019178,2]
[387413638,1758720639375,-480.0,0.00019178,2]
[387413639,1758720639385,-480.0,0.00019178,2]
[387413641,1758720639394,-480.0,0.00019178,2]
[387413643,1758720639403,-480.0,0.00019178,2]
[387413645,1758720639413,-480.0,0.00019178,2]
[387413647,1758720639422,-482.49818541,0.00019178,2]
[387413649,1758720639431,-490.60374829,0.00019178,2]
[387413651,1758720639441,-480.0,0.00019178,2]
[387413652,1758720639450,-480.0,0.00019178,2]
[387413653,1758720639460,-480.0,0.00019178,2]
[387413655,1758720639469,-480.0,0.00019178,2]
[387413657,1758720639478,-480.0,0.00019178,2]
[387413659,1758720639488,-480.0,0.00019178,2]
[387413661,1758720639497,-480.0,0.00019178,2]
[387413663,1758720639507,-480.0,0.00019178,2]
[387413665,1758720639516,-480.0,0.00019178,2]
[387413667,1758720639526,-492.65224631,0.00019178,2]
[387413669,1758720639535,-480.0,0.00019178,2]
[387413671,1758720639544,-480.0,0.00019178,2]
[387413673,1758720639554,-480.0,0.00019178,2]
[387413675,1758720639563,-483.23626799,0.00019178,2]
[387413677,1758720639574,-480.0,0.00019178,2]
[387413679,1758720639584,-483.5174585,0.00019178,2]
[387413681,1758720639593,-1000.0,0.00019178,2]
[387413683,1758720639603,-480.0,0.00019178,2]
[387413685,1758720639612,-480.0,0.00019178,2]
[387413687,1758720639621,-480.0,0.00019178,2]
[387413689,1758720639631,-480.0,0.00019178,2]
[387413691,1758720639640,-480.0,0.00019178,2]
[387413693,1758720639650,-480.0,0.00019178,2]
[387413695,1758720639659,-480.0,0.00019178,2]
[387413697,1758720639669,-480.0,0.00019178,2]
[387413699,1758720639678,-480.0,0.00019178,2]
[387413701,1758720639688,-480.0,0.00019178,2]
[387413703,1758720639698,-228.14784228,0.00019178,2]
[387413705,1758720639707,-480.0,0.00019178,2]
[387413707,1758720639717,-480.0,0.00019178,2]
[387413709,1758720639726,-480.0,0.00019178,2]
[387413711,1758720639736,-480.0,0.00019178,2]
[387413713,1758720639745,-480.0,0.00019178,2]
[387413715,1758720639754,-482.26362301,0.00019178,2]
[387413716,1758720639763,-480.0,0.00019178,2]
[387413718,1758720639773,-481.22940564,0.00019178,2]
[387413720,1758720639782,-480.0,0.00019178,2]
[387413721,1758720639792,-480.0,0.00019178,2]
[387413722,1758720639801,-480.0,0.00019178,2]
[387413724,1758720639811,-480.0,0.00019178,2]
[387413726,1758720639821,-210.73893496,0.00019178,2]
[387413728,1758720639830,-480.0,0.00019178,2]
[387413730,1758720639839,-480.0,0.00019178,2]
[387413731,1758720639849,-480.0,0.00019178,2]
[387413733,1758720639858,-480.0,0.00019178,2]
[387413736,1758720639867,-480.0,0.00019178,2]
[387413737,1758720639877,-440.0,0.00019178,2]
[387413739,1758720639886,-480.0,0.00019178,2]
[387413741,1758720639895,-480.0,0.00019178,2]
[387413743,1758720639905,-480.0,0.00019178,2]
[387413745,1758720639914,-500.0,0.00019178,2]
[387413747,1758720639924,-500.0,0.00019178,2]
[387413749,1758720639933,-500.0,0.00019178,2]
[387413751,1758720639943,-480.0,0.00019178,2]
[387413753,1758720639953,-480.0,0.00019178,2]
[387413755,1758720639962,-480.0,0.00019178,2]
[387413757,1758720639972,-480.0,0.00019178,2]
[387413759,1758720639981,-480.0,0.00019178,2]
[387413761,1758720639991,-480.0,0.00019178,2]
[387413763,1758720640000,-480.0,0.00019178,2]
[387413765,1758720640010,-480.0,0.00019178,2]
[387413767,1758720640018,-480.0,0.00019178,2]
[387413769,1758720640028,-482.59736058,0.00019178,2]
[387413771,1758720640037,-290.57555385,0.00019178,2]
[387413773,1758720640047,-480.0,0.00019178,2]
[387413775,1758720640056,-480.0,0.00019178,2]
[387413776,1758720640065,-480.0,0.00019178,2]
[387413778,1758720640074,-480.0,0.00019178,2]
[387413780,1758720640084,-485.52348624,0.00019178,2]
[387413782,1758720640094,-483.25747613,0.00019178,2]
[387413784,1758720640103,-480.0,0.00019178,2]
[387413786,1758720640113,-480.0,0.00019178,2]
[387413788,1758720640122,-480.0,0.00019178,2]
[387413790,1758720640132,-480.0,0.00019178,2]
[387413792,1758720640142,-480.0,0.00019178,2]
[387413794,1758720640151,-480.0,0.00019178,2]
[387413797,1758720640160,-480.0,0.00019178,2]
[387413799,1758720640170,-480.0,0.00019178,2]
[387413800,1758720640179,-480.0,0.00019178,2]
[387413802,1758720640189,-480.0,0.00019178,2]
[387413805,1758720640199,-480.0,0.00019178,2]
[387413806,1758720640208,-480.0,0.00019178,2]
[387413808,1758720640217,-480.0,0.00019178,2]
[387413810,1758720640227,-463.94170327,0.00019178,2]
[387413812,1758720640237,-480.0,0.00019178,2]
[387413814,1758720640247,-484.16148629,0.00019178,2]
[387413816,1758720640256,-481.60542264,0.00019178,2]
[387413818,1758720640265,-480.0,0.00019178,2]
[387413820,1758720640275,-480.0,0.00019178,2]
[387413822,1758720640286,-480.0,0.00019178,2]
[387413824,1758720640298,-480.64466732,0.00019178,2]
[387413826,1758720640307,-480.0,0.00019178,2]
[387413828,1758720640317,-480.0,0.00019178,2]
[387413830,1758720640326,-495.892349,0.00019178,2]
[387413832,1758720640337,-480.0,0.00019178,2]
[387413834,1758720640346,-480.0,0.00019178,2]
[387413836,1758720640355,-480.0,0.00019178,2]
[387413837,1758720640366,-480.0,0.00019178,2]
[387413839,1758720640376,-480.0,0.00019178,2]
[387413841,1758720640386,-480.0,0.00019178,2]
[387413843,1758720640395,-480.0,0.00019178,2]
[387413845,1758720640405,-480.0,0.00019178,2]
[387413846,1758720640414,-483.20890355,0.00019178,2]
[387413847,1758720640423,-480.0,0.00019178,2]
[387413849,1758720640433,-480.0,0.00019178,2]
[387413850,1758720640443,-480.0,0.00019178,2]
[387413851,1758720640452,-480.32787428,0.00019178,2]
[387413852,1758720640462,-496.60377415,0.00019178,2]
[387413853,1758720640471,-480.0,0.00019178,2]
[387413854,1758720640480,-480.69588768,0.00019178,2]
[387413855,1758720640490,-480.0,0.00019178,2]
[387413856,1758720640500,-480.0,0.00019178,2]
[387413857,1758720640510,-480.0,0.00019178,2]
[387413858,1758720640520,-480.0,0.00019178,2]
[387413859,1758720640529,-480.0,0.00019178,2]
[387413860,1758720640539,-480.0,0.00019178,2]
[387413861,1758720640548,-480.0,0.00019178,2]
[387413862,1758720640557,-480.0,0.00019178,2]
[387413863,1758720640567,-480.0,0.00019178,2]
[387413864,1758720640576,-500.0,0.00019178,2]
[387413865,1758720640586,-481.24857996,0.00019178,2]
[387413866,1758720640595,-480.0,0.00019178,2]
[387413867,1758720640604,-480.0,0.00019178,2]
[387413868,1758720640614,-480.0,0.00019178,2]
[387413869,1758720640623,-480.0,0.00019178,2]
[387413870,1758720640632,-480.0,0.00019178,2]
[387413871,1758720640642,-480.0,0.00019178,2]
[387413872,1758720640652,-482.0211243,0.00019178,2]
[387413873,1758720640661,-480.0,0.00019178,2]
[387413874,1758720640671,-480.0,0.00019178,2]
[387413875,1758720640680,-480.0,0.00019178,2]
[387413876,1758720640690,-480.70614242,0.00019178,2]
[387413877,1758720640700,-480.0,0.00019178,2]
[387413878,1758720640709,-480.0,0.00019178,2]
[387413879,1758720640718,-480.0,0.00019178,2]
[387413880,1758720640729,-480.0,0.00019178,2]
[387413881,1758720640739,-480.0,0.00019178,2]
[387413882,1758720640749,-480.0,0.00019178,2]
[387413884,1758720640758,-480.0,0.00019178,2]
[387413886,1758720640768,-480.0,0.00019178,2]
[387413888,1758720640777,-480.0,0.00019178,2]
[387413890,1758720640786,-246.78095805,0.00019178,2]
[387413891,1758720640795,-480.0,0.00019178,2]
[387413892,1758720640805,-480.0,0.00019178,2]
[387413893,1758720640815,-480.0,0.00019178,2]
[387413895,1758720640825,-562.29,0.00019178,2]
[387413897,1758720640834,-480.0,0.00019178,2]
[387413899,1758720640844,-480.0,0.00019178,2]
[387413900,1758720640854,-480.0,0.00019178,2]
[387413901,1758720640864,-481.69730342,0.00019178,2]
[387413902,1758720640874,-480.0,0.00019178,2]
[387413903,1758720640884,-480.3695089,0.00019178,2]
[387413904,1758720640894,-480.0,0.00019178,2]
[387413905,1758720640903,-480.0,0.00019178,2]
[387413906,1758720640913,-480.0,0.00019178,2]
[387413907,1758720640922,-480.0,0.00019178,2]
[387413908,1758720640932,-480.0,0.00019178,2]
[387413909,1758720640941,-480.0,0.00019178,2]
[387413910,1758720640951,-480.0,0.00019178,2]
[387413911,1758720640960,-542.95231655,0.00019178,2]
[387413912,1758720640970,-496.15287657,0.00019178,2]
[387413913,1758720640979,-480.0,0.00019178,2]
[387413914,1758720640988,-480.0,0.00019178,2]
[387413915,1758720640998,-480.0,0.00019178,2]
[387413916,1758720641008,-480.0,0.00019178,2]
[387413917,1758720641017,-480.0,0.00019178,2]
[387413918,1758720641027,-480.0,0.00019178,2]
[387413919,1758720641036,-480.0,0.00019178,2]
[387413920,1758720641046,-480.0,0.00019178,2]
[387413922,1758720641056,-480.0,0.00019178,2]
[387413924,1758720641065,-480.0,0.00019178,2]
[387413925,1758720641075,-480.0,0.00019178,2]
[387413926,1758720641084,-481.71637514,0.00019178,2]
[387413927,1758720641093,-480.0,0.00019178,2]
[387413929,1758720641103,-480.0,0.00019178,2]
[387413931,1758720641112,-480.0,0.00019178,2]
[387413933,1758720641122,-480.0,0.00019178,2]
[387413935,1758720641132,-480.0,0.00019178,2]
[387413937,1758720641142,-480.0,0.00019178,2]
[387413939,1758720641151,-480.0,0.00019178,2]
[387413941,1758720641161,-480.0,0.00019178,2]
[387413943,1758720641170,-481.31608615,0.00019178,2]
[387413945,1758720641180,-480.0,0.00019178,2]
[387413947,1758720641190,-480.0,0.00019178,2]
[387413948,1758720641199,-480.0,0.00019178,2]
[387413950,1758720641209,-480.0,0.00019178,2]
[387413952,1758720641219,-480.0,0.00019178,2]
[387413954,1758720641228,-480.0,0.00019178,2]
[387413956,1758720641238,-480.0,0.00019178,2]
[387413958,1758720641247,-480.0,0.00019178,2]
[387413960,1758720641256,-480.0,0.00019178,2]
[387413962,1758720641266,-480.0,0.00019178,2]
[387413964,1758720641276,-480.0,0.00019178,2]
[387413966,1758720641287,-480.0,0.00019178,2]
[387413968,1758720641298,-480.0,0.00019178,2]
[387413970,1758720641307,-480.0,0.00019178,2]
[387413972,1758720641316,-480.0,0.00019178,2]
[387413974,1758720641326,-480.0,0.00019178,2]
[387413976,1758720641335,-480.0,0.00019178,2]
[387413978,1758720641345,-485.60223047,0.00019178,2]
[387413980,1758720641354,-480.0,0.00019178,2]
[387413982,1758720641364,-364.05301282,0.00019178,2]
[387413984,1758720641373,-480.0,0.00019178,2]
[387413986,1758720641383,-480.0,0.00019178,2]
[387413988,1758720641394,-480.0,0.00019178,2]
[387413990,1758720641404,-480.0,0.00019178,2]
[387413992,1758720641414,-481.97153496,0.00019178,2]
[387413994,1758720641423,-269.04493991,0.00019178,2]
[387413996,1758720641433,-492.97807474,0.00019178,2]
[387413998,1758720641442,-480.0,0.00019178,2]
[387414000,1758720641453,-480.0,0.00019178,2]
[387414002,1758720641462,-480.0,0.00019178,2]
[387414004,1758720641473,-480.0,0.00019178,2]
[387414006,1758720641483,-480.0,0.00019178,2]